bitfinex/quotes_ETHUSD_20230109
["timestamp","ask_amount","ask_price","bid_price","bid_amount"]
[1673253793751,0.07128251,1311.2,1311.1,4.00199133]
[1673253793913,0.07128251,1311.2,1311.1,45.9158776]
[1673253794380,0.07128251,1311.2,1311.1,45.91704403]
[1673253794652,0.07128251,1311.2,1311.1,39.97493393]
[1673253795084,0.07128251,1311.2,1311.1,31.61968084]
[1673253795260,0.07128251,1311.2,1311.1,29.87268084]
[1673253795618,0.23670531,1311.2,1311.1,29.87268084]
[1673253796809,5.31e-06,1311.2,1311.1,29.87268084]
[1673253797000,5.31e-06,1311.2,1311.1,30.10268084]
[1673253797345,5.31e-06,1311.2,1311.1,34.05102492]
[1673253797874,5.31e-06,1311.2,1311.1,34.81456326]
[1673253798456,5.31e-06,1311.2,1311.1,40.75259195]
[1673253798687,5.31e-06,1311.2,1311.1,34.81456326]
[1673253800665,5.25293685,1311.4,1311.1,42.50560805]
[1673253800666,0.13566634,1311.4,1311.1,42.50560805]
[1673253800912,0.13566634,1311.4,1311.3,1.737]
[1673253801078,0.13566634,1311.4,1311.3,37.30040446]
[1673253801288,0.13566634,1311.4,1311.3,41.0639428]
[1673253802649,0.13566634,1311.4,1311.3,41.2939428]
[1673253802975,0.13566634,1311.4,1311.3,40.53040446]
[1673253803393,6.34e-06,1311.4,1311.3,40.53040446]
[1673253803623,6.34e-06,1311.4,1311.3,41.2939428]
[1673253807677,6.34e-06,1311.4,1311.3,47.21009343]
[1673253809859,6.34e-06,1311.4,1311.3,46.44655509]
[1673253810376,2.68e-06,1311.5,1311.3,48.19455509]
[1673253810536,0.1403104,1311.6,1311.4,43.50427933]
[1673253810902,0.1403104,1311.6,1311.5,28.60569951]
[1673253811074,0.1403104,1311.6,1311.5,31.83569951]
[1673253812432,4e-07,1311.6,1311.5,32.59923785]
[1673253812647,0.7375322,1311.7,1311.5,30.85723785]
[1673253812895,0.7375322,1311.7,1311.6,30.09195951]
[1673253813743,0.05,1311.8,1311.6,42.51819453]
[1673253813899,9.67232263,1311.9,1311.8,30.49244]
[1673253814257,1.87122263,1311.9,1311.8,37.48158951]
[1673253814470,0.16435104,1311.9,1311.8,37.48158951]
[1673253816036,1.87122263,1311.9,1311.8,41.22974846]
[1673253816212,51.62668424,1312.1,1311.8,41.22974846]
[1673253816213,12.2643023,1312.1,1311.8,41.22974846]
[1673253816431,4.1675023,1312.1,1311.9,6.98914951]
[1673253816738,4.1675023,1312.1,1311.9,10.62253]
[1673253816965,1.70687159,1312.0,1311.9,18.24506]
[1673253818207,1.70687159,1312.0,1311.9,25.86759]
[1673253818423,2.46063071,1312.1,1311.9,29.85673951]
[1673253818424,1.89374381,1312.1,1311.9,29.85673951]
[1673253818874,1.89374381,1312.1,1311.9,29.65053597]
[1673253819084,1.89374381,1312.1,1311.9,34.37784657]
[1673253819838,0.18687222,1312.1,1312.0,3.98914951]
[1673253820152,0.18687222,1312.1,1312.0,29.85499951]
[1673253821391,0.18687222,1312.1,1312.0,30.08499951]
[1673253821617,0.18687222,1312.1,1312.0,22.23304951]
[1673253823178,0.18687222,1312.1,1312.0,29.85499951]
[1673253825168,0.03811494,1312.4,1312.0,42.99024667]
[1673253825388,0.03811494,1312.4,1312.1,17.79134951]
[1673253825597,0.03811494,1312.4,1312.1,13.0]
[1673253825804,0.03811494,1312.4,1312.1,20.62131]
[1673253826000,0.03811494,1312.4,1312.1,28.24268]
[1673253826216,0.03811494,1312.4,1312.2,3.98914951]
[1673253826576,0.03811494,1312.4,1312.3,3.0]
[1673253827274,0.03811494,1312.4,1312.2,3.0]
[1673253828243,0.03811494,1312.4,1312.2,10.62077]
[1673253829062,0.03811494,1312.4,1312.2,18.24155]
[1673253829795,0.03811494,1312.4,1312.2,10.62077]
[1673253830669,0.03811494,1312.4,1312.2,34.23636751]
[1673253834728,0.03811494,1312.4,1312.2,29.85147951]
[1673253839965,0.03811494,1312.4,1312.2,14.60991951]
[1673253840968,0.03811494,1312.4,1312.2,22.23069951]
[1673253842920,0.03811494,1312.4,1312.2,29.85147951]
[1673253843242,0.03811494,1312.4,1312.2,10.62077]
[1673253843453,0.03811494,1312.4,1312.2,3.0]
[1673253845342,0.03811494,1312.4,1312.2,10.62069]
[1673253845688,0.03811494,1312.4,1312.2,3.0]
[1673253845904,0.03811494,1312.4,1312.2,25.85351451]
[1673253846275,0.03811494,1312.4,1312.3,3.98914951]
[1673253846495,0.03811494,1312.4,1312.3,29.84974951]
[1673253847165,0.03811494,1312.4,1312.3,29.84754907]
[1673253849430,1.41811494,1312.4,1312.3,3.0]
[1673253849644,1.41811494,1312.4,1312.1,34.69998]
[1673253849645,3.43457165,1312.4,1312.1,20.0791]
[1673253849910,3.43457165,1312.4,1312.1,7.9861]
[1673253849911,13.32281487,1312.4,1312.1,7.9861]
[1673253850084,6.28156381,1312.4,1312.1,7.9861]
[1673253850288,1.70450372,1312.3,1312.1,7.9861]
[1673253850502,1.70450372,1312.3,1312.1,11.97524951]
[1673253851010,1.70450372,1312.3,1312.1,3.98914951]
[1673253851705,1.70450372,1312.3,1312.1,11.61033951]
[1673253852482,3.97305694,1312.3,1312.1,3.98914951]
[1673253853107,1.70450372,1312.3,1312.1,3.98914951]
[1673253853320,3.97305694,1312.3,1312.1,11.61039951]
[1673253855371,1.70450372,1312.2,1312.1,11.61039951]
[1673253855529,1.70450372,1312.2,1312.1,14.61039951]
[1673253856592,1.70450372,1312.2,1312.1,6.98914951]
[1673253856804,1.70450372,1312.2,1312.1,14.61051951]
[1673253858316,3.97305694,1312.2,1312.1,14.61051951]
[1673253858677,3.97305694,1312.2,1312.1,6.98914951]
[1673253859124,3.97305694,1312.2,1312.1,14.61051951]
[1673253860149,3.97305694,1312.2,1312.1,22.23188951]
[1673253860355,2.26855322,1312.2,1312.1,22.23188951]
[1673253860827,2.26855322,1312.2,1312.1,14.61051951]
[1673253861358,3.97838523,1312.2,1312.1,14.61051951]
[1673253861533,2.26855322,1312.2,1312.1,14.61051951]
[1673253861944,3.97847553,1312.2,1312.1,14.61051951]
[1673253862267,3.97847386,1312.2,1312.1,14.61051951]
[1673253862459,2.26855322,1312.2,1312.1,14.61051951]
[1673253863965,5.10939276,1312.2,1312.1,14.61051951]
[1673253865147,5.12224126,1312.2,1312.1,14.61051951]
[1673253865456,5.12224126,1312.2,1312.1,22.23188951]
[1673253866259,5.12224126,1312.2,1312.1,14.61051951]
[1673253867239,5.12224126,1312.2,1312.1,22.23188951]
[1673253867976,5.12224126,1312.2,1312.1,14.60712801]
[1673253872845,5.12224126,1312.2,1312.1,22.22849801]
[1673253875611,5.12224126,1312.2,1312.1,14.60712801]
[1673253877649,5.12224126,1312.2,1312.1,22.22849801]
[1673253878185,5.12224126,1312.2,1312.1,14.60712801]
[1673253878706,5.12224126,1312.2,1312.1,10.62137]
[1673253879457,2.84083954,1312.2,1312.1,10.62137]
[1673253879997,2.84083954,1312.2,1312.1,18.24274]
[1673253880219,2.84083954,1312.2,1312.1,10.62137]
[1673253881002,5.12335965,1312.2,1312.1,10.62137]
[1673253883252,2.84083954,1312.2,1312.1,10.62137]
[1673253883597,5.12321664,1312.2,1312.1,10.62137]
[1673253883770,2.84083954,1312.2,1312.1,10.62137]
[1673253884125,5.12327862,1312.2,1312.1,10.62137]
[1673253885649,5.12327862,1312.2,1312.1,10.32137]
[1673253885866,5.12327862,1312.2,1312.1,2.7]
[1673253885867,2.84083954,1312.2,1312.1,2.7]
[1673253886094,5.12324523,1312.2,1312.1,2.7]
[1673253886612,5.12324523,1312.2,1312.1,10.32137]
[1673253886836,2.84083954,1312.2,1312.1,10.32137]
[1673253887030,5.12329327,1312.2,1312.1,10.32137]
[1673253887231,2.84083954,1312.2,1312.1,10.32137]
[1673253889214,2.84083954,1312.2,1312.1,2.7]
[1673253889431,3.41293524,1312.3,1312.1,2.7]
[1673253889640,2.85660438,1312.2,1312.1,2.7]
[1673253889886,2.90660438,1312.2,1312.1,2.7]
[1673253890101,2.85660438,1312.2,1312.1,10.32137]
[1673253890293,2.85653168,1312.2,1312.1,10.32137]
[1673253890640,2.85653168,1312.2,1312.1,17.94274]
[1673253893365,2.85673581,1312.2,1312.1,17.94274]
[1673253893578,2.85670746,1312.2,1312.1,17.94274]
[1673253894209,2.85672769,1312.2,1312.1,17.94274]
[1673253896969,5.14222877,1312.2,1312.1,32.10967351]
[1673253897158,3.99964386,1312.2,1312.1,32.10967351]
[1673253897471,3.99893215,1312.2,1312.1,32.68177351]
[1673253897839,3.99893215,1312.2,1312.1,32.10967351]
[1673253903018,1.71343107,1312.2,1312.1,32.10967351]
[1673253903214,1.71343107,1312.2,1312.1,32.33967351]
[1673253906264,2.28550108,1312.3,1312.1,32.33967351]
[1673253906265,3.99893215,1312.3,1312.1,32.33967351]
[1673253906586,3.99763934,1312.3,1312.2,7.98914951]
[1673253906797,3.99765456,1312.3,1312.2,33.85148951]
[1673253909455,3.99765456,1312.3,1312.2,29.85148951]
[1673253909984,2.28550108,1312.3,1312.2,29.85148951]
[1673253910305,2.28550108,1312.3,1312.2,29.84838683]
[1673253911355,3.99703663,1312.3,1312.2,29.84838683]
[1673253911661,3.99706761,1312.3,1312.2,29.84838683]
[1673253913648,2.28201898,1312.4,1312.2,40.64629021]
[1673253913866,2.85252372,1312.7,1312.4,3.15257635]
[1673253914051,2.8531438,1312.8,1312.5,30.65033156]
[1673253914251,2.8531438,1312.8,1312.6,4.21914951]
[1673253914456,2.8531438,1312.8,1312.7,11.60702951]
[1673253914716,2.8531438,1312.8,1312.7,14.60702951]
[1673253914923,2.8531438,1312.8,1312.7,6.98914951]
[1673253917766,10.7174438,1312.9,1312.7,6.98914951]
[1673253918596,2.8531438,1312.9,1312.7,8.47287646]
[1673253921772,5.13052497,1312.9,1312.7,8.47287646]
[1673253923942,2.27738117,1312.9,1312.7,8.47287646]
[1673253924897,5.13052497,1312.9,1312.7,8.47287646]
[1673253925312,2.27738117,1312.9,1312.7,8.47287646]
[1673253929758,2.27738117,1312.9,1312.8,3.98914951]
[1673253929939,0.7375322,1313.0,1312.8,15.68367716]
[1673253930152,0.7375322,1313.0,1312.9,3.98914951]
[1673253930398,0.7375322,1313.0,1312.9,6.98914951]
[1673253930934,3.01491337,1313.0,1312.9,6.98914951]
[1673253932186,3.01491337,1313.0,1312.9,8.53451723]
[1673253932794,3.01491337,1313.0,1312.9,3.0]
[1673253933218,3.01491337,1313.0,1312.8,3.0]
[1673253933464,3.01491337,1313.0,1312.8,6.98914951]
[1673253934070,5.86805717,1313.0,1312.8,6.98914951]
[1673253934815,5.86805717,1313.0,1312.8,6.98561591]
[1673253936701,5.86805717,1313.0,1312.8,14.60288591]
[1673253937296,5.86805717,1313.0,1312.8,6.98561591]
[1673253937815,2.27738117,1312.9,1312.8,2.9964664]
[1673253938068,2.27738117,1312.9,1312.6,0.8019]
[1673253938379,2.27738117,1312.9,1312.7,3.98914951]
[1673253939121,5.13052497,1312.9,1312.7,3.98914951]
[1673253939780,5.13052497,1312.9,1312.8,3.0]
[1673253941835,7.57807558,1312.9,1312.8,3.0]
[1673253942048,30.47048317,1312.9,1312.6,3.0]
[1673253942275,2.27651507,1312.7,1312.6,6.98914951]
[1673253942537,2.27651507,1312.7,1312.6,3.0]
[1673253942789,24.1406368,1312.7,1312.3,0.572]
[1673253943058,1.743,1312.5,1312.3,4.56114951]
[1673253944223,1.743,1312.5,1312.3,12.18121951]
[1673253944685,1.743,1312.5,1312.4,3.0]
[1673253947799,4.02551507,1312.6,1312.4,4.51811095]
[1673253947999,4.02551507,1312.6,1312.4,3.0]
[1673253948475,1.749,1312.6,1312.4,10.61959]
[1673253948996,4.02551507,1312.6,1312.4,3.0]
[1673253949527,14.48976891,1312.6,1312.4,3.0]
[1673253949682,22.10837891,1312.6,1312.4,3.0]
[1673253949893,19.70012806,1312.6,1312.4,3.0]
[1673253950357,12.08151806,1312.6,1312.4,3.0]
[1673253950572,10.33251806,1312.6,1312.4,3.0]
[1673253952461,5.12215891,1312.6,1312.4,3.0]
[1673253952838,2.27651507,1312.6,1312.4,3.0]
[1673253953039,5.11999404,1312.6,1312.4,3.0]
[1673253953302,10.46432384,1312.6,1312.4,3.0]
[1673253953483,2.84564384,1312.6,1312.3,3.0]
[1673253953696,7.79262848,1312.6,1312.3,3.0]
[1673253953904,15.41114848,1312.6,1312.3,3.0]
[1673253954619,7.79262848,1312.6,1312.3,3.0]
[1673253955482,9.17362848,1312.6,1312.3,3.0]
[1673253955683,9.17362848,1312.6,1312.3,10.62017]
[1673253960345,4.22664384,1312.6,1312.3,10.62017]
[1673253961181,6.50628175,1312.6,1312.3,10.62017]
[1673253962665,3.66063791,1312.6,1312.3,10.62017]
[1673253962922,6.50628175,1312.6,1312.3,3.0]
[1673253963162,6.50628175,1312.6,1312.3,10.62017]
[1673253963814,25.47078175,1312.7,1312.3,33.69317851]
[1673253965407,24.07878175,1312.7,1312.3,33.69317851]
[1673253965817,2.27963791,1312.6,1312.3,33.69317851]
[1673253966024,24.07878175,1312.7,1312.3,33.69317851]
[1673253966812,2.27963791,1312.6,1312.3,33.69317851]
[1673253972269,2.27963791,1312.6,1312.3,3.0]
[1673253972270,6.50528175,1312.5,1312.3,3.0]
[1673253972449,5.12528175,1312.5,1312.3,3.0]
[1673253973612,2.27963791,1312.4,1312.3,3.0]
[1673253975833,2.27963791,1312.4,1312.3,2.99785158]
[1673253981644,5.12528175,1312.4,1312.3,2.99785158]
[1673253982257,2.27963791,1312.4,1312.3,2.99785158]
[1673253985814,5.12528175,1312.4,1312.3,2.99785158]
[1673253986578,2.27963791,1312.4,1312.3,2.99785158]
[1673253988573,5.12528175,1312.4,1312.3,2.99785158]
[1673253988784,2.27963791,1312.4,1312.3,2.99785158]
[1673253993310,2.26163791,1312.4,1312.3,2.99785158]
[1673253993513,4.59164384,1312.5,1312.3,25.85845158]
[1673253993715,2.84564384,1312.5,1312.3,27.72043474]
[1673253993907,2.84564384,1312.5,1312.3,20.10023474]
[1673253994114,2.84564384,1312.5,1312.3,10.61805158]
[1673254001197,2.28426788,1312.4,1312.3,10.61805158]
[1673254004224,2.28426788,1312.4,1312.3,18.23825158]
[1673254004702,2.28426788,1312.4,1312.3,10.61805158]
[1673254005005,5.12991172,1312.5,1312.3,22.22740109]
[1673254005230,2.28426788,1312.4,1312.3,14.60720109]
[1673254005412,2.28426788,1312.4,1312.3,17.6301112]
[1673254006031,2.28426788,1312.4,1312.3,25.2503112]
[1673254006474,2.28426788,1312.4,1312.3,17.6301112]
[1673254006640,2.28426788,1312.4,1312.3,25.2503112]
[1673254006848,2.28426788,1312.4,1312.3,32.8705112]
[1673254007062,5.12991172,1312.5,1312.3,25.2503112]
[1673254007316,2.28426788,1312.4,1312.3,25.2503112]
[1673254007477,2.28426788,1312.4,1312.3,17.6301112]
[1673254008130,2.28426788,1312.4,1312.3,25.2503112]
[1673254012166,2.28426788,1312.4,1312.3,32.8705112]
[1673254012328,2.28426788,1312.4,1312.3,25.2503112]
[1673254015829,2.28426788,1312.4,1312.3,22.22467357]
[1673254020334,2.28426788,1312.4,1312.3,29.84487357]
[1673254020546,2.28426788,1312.4,1312.3,22.22467357]
[1673254021501,2.28426788,1312.4,1312.3,29.84487357]
[1673254022095,2.28426788,1312.4,1312.3,22.22467357]
[1673254023152,5.12991172,1312.4,1312.3,2.99512406]
[1673254023389,4.11156373,1312.4,1312.2,8.0015]
[1673254023572,2.85783467,1312.3,1312.2,11.99064951]
[1673254023788,2.85783467,1312.3,1312.2,6.98914951]
[1673254024002,2.85783467,1312.3,1312.2,14.60992951]
[1673254024003,5.14416832,1312.3,1312.2,14.60992951]
[1673254024407,5.14416832,1312.3,1312.2,22.23070951]
[1673254024652,5.14416832,1312.3,1312.2,29.85148951]
[1673254026458,2.28633365,1312.3,1312.2,29.85148951]
[1673254027769,5.14416832,1312.3,1312.2,18.24156]
[1673254027981,5.65858515,1312.3,1312.2,18.24156]
[1673254029293,2.28633365,1312.3,1312.2,18.24156]
[1673254030546,2.28633365,1312.3,1312.2,25.86234]
[1673254037995,2.28633365,1312.3,1312.2,18.24156]
[1673254038614,2.28633365,1312.3,1312.2,25.86234]
[1673254039169,2.28633365,1312.3,1312.2,18.24156]
[1673254039910,2.28633365,1312.3,1312.2,18.23791532]
[1673254042004,2.28633365,1312.3,1312.2,10.61713532]
[1673254042181,2.80075048,1312.3,1312.2,10.61713532]
[1673254043063,2.79734629,1312.3,1312.2,10.61713532]
[1673254046167,5.65518096,1312.3,1312.2,10.61713532]
[1673254046370,2.79734629,1312.3,1312.2,10.61713532]
[1673254046648,5.65518096,1312.3,1312.2,2.99635532]
[1673254047973,5.65518096,1312.3,1312.2,10.61713532]
[1673254049466,2.79734629,1312.3,1312.2,10.61713532]
[1673254049996,5.65518096,1312.3,1312.2,10.61713532]
[1673254051232,2.79734629,1312.3,1312.2,10.61713532]
[1673254052623,5.65518096,1312.3,1312.2,10.61713532]
[1673254053469,3.3722515,1312.3,1312.1,0.03002526]
[1673254053657,9.44266807,1312.2,1312.1,0.03002526]
[1673254053847,11.4256606,1312.2,1312.1,0.03002526]
[1673254054060,8.55851797,1312.2,1312.1,0.03002526]
[1673254054924,6.17385048,1312.2,1312.1,0.03002526]
[1673254057965,9.65485048,1312.2,1312.1,0.03002526]
[1673254060490,6.23107792,1312.2,1312.1,0.03002526]
[1673254064156,9.65485048,1312.2,1312.1,0.03002526]
[1673254064376,6.23107792,1312.2,1312.1,0.02681391]
[1673254065265,9.07928609,1312.2,1312.1,0.02681391]
[1673254069318,11.35768682,1312.2,1312.1,0.02681391]
[1673254070250,9.07928609,1312.2,1312.1,0.02681391]
[1673254073242,9.60973358,1312.2,1312.1,0.02681391]
[1673254075136,9.60973358,1312.2,1312.1,7.64818391]
[1673254075452,7.87673358,1312.2,1312.1,7.64818391]
[1673254077294,2.27844749,1312.2,1312.1,0.02681391]
[1673254077537,5.12665566,1312.2,1312.1,0.02681391]
[1673254077867,2.27844749,1312.2,1312.1,0.02681391]
[1673254079258,2.27844749,1312.2,1312.1,7.64818391]
[1673254079623,2.27844749,1312.2,1312.1,0.02681391]
[1673254080407,5.12665566,1312.2,1312.1,0.02681391]
[1673254080581,7.57192291,1312.2,1312.1,0.02681391]
[1673254081362,7.57192291,1312.2,1312.1,7.64818391]
[1673254081978,2.27844749,1312.2,1312.1,22.89092391]
[1673254082306,5.12665566,1312.2,1312.1,22.89092391]
[1673254082822,5.12665566,1312.2,1312.1,15.26955391]
[1673254082981,5.12665566,1312.2,1312.1,7.64818391]
[1673254085219,5.12665566,1312.2,1312.1,0.02681391]
[1673254085419,7.91430017,1312.2,1312.1,0.02681391]
[1673254086394,5.63585268,1312.2,1312.1,0.02681391]
[1673254087854,5.63585268,1312.2,1312.1,0.02448929]
[1673254088819,5.63585268,1312.2,1312.1,7.64585929]
[1673254091282,2.78764451,1312.2,1312.1,7.64585929]
[1673254093310,6.21141707,1312.2,1312.1,7.64585929]
[1673254097388,3.42377256,1312.2,1312.1,7.64585929]
[1673254097599,3.42377256,1312.2,1312.1,15.26722929]
[1673254097840,3.42377256,1312.2,1312.1,22.88859929]
[1673254098578,3.42377256,1312.2,1312.1,0.02448929]
[1673254106889,25.06755004,1312.3,1312.1,0.02448929]
[1673254107311,38.7031985,1312.3,1312.1,0.02448929]
[1673254107468,3.99353321,1312.2,1312.1,0.02448929]
[1673254107679,9.38790306,1312.2,1312.1,0.02448929]
[1673254107936,17.00868306,1312.2,1312.1,0.02448929]
[1673254108161,9.38790306,1312.2,1312.1,0.02448929]
[1673254108339,17.6164414,1312.2,1312.1,0.02448929]
[1673254108551,13.6164414,1312.2,1312.1,0.02448929]
[1673254111674,13.6164414,1312.2,1312.1,0.02075839]
[1673254114594,5.39436985,1312.2,1312.1,15.26349839]
[1673254114803,25.06755004,1312.3,1312.1,0.02075839]
[1673254115029,3.42588234,1312.2,1312.1,0.02075839]
[1673254115325,3.42581553,1312.2,1312.1,0.02075839]
[1673254115697,3.42581553,1312.2,1312.1,7.64212839]
[1673254117179,3.42581553,1312.2,1312.1,0.02075839]
[1673254117579,3.42581553,1312.2,1312.1,7.64212839]
[1673254117794,3.42581553,1312.2,1312.1,0.02075839]
[1673254120136,6.27515209,1312.2,1312.1,0.02075839]
[1673254120333,2.84933656,1312.2,1312.1,0.02075839]
[1673254120561,6.27518216,1312.2,1312.1,0.02075839]
[1673254129937,3.4258456,1312.2,1312.1,0.02075839]
[1673254132299,3.4258456,1312.2,1312.1,22.88486839]
[1673254132300,2.85572926,1312.2,1312.1,22.88486839]
[1673254135892,2.85572926,1312.2,1312.1,15.26349839]
[1673254136400,2.85572926,1312.2,1312.1,7.64212839]
[1673254136826,2.85490451,1312.2,1312.1,7.64212839]
[1673254137041,3.9978456,1312.3,1312.1,7.64212839]
[1673254137269,2.85478109,1312.2,1312.1,0.02075839]
[1673254138131,3.9978456,1312.3,1312.1,7.64212839]
[1673254138348,2.85481953,1312.2,1312.1,7.64212839]
[1673254138655,3.9978456,1312.3,1312.1,7.64212839]
[1673254139449,2.85478135,1312.2,1312.1,7.64212839]
[1673254139707,3.9978456,1312.3,1312.1,7.64212839]
[1673254139912,2.85462375,1312.2,1312.1,7.64212839]
[1673254140129,3.9978456,1312.3,1312.1,7.64212839]
[1673254140444,2.85462482,1312.2,1312.1,10.10894758]
[1673254141486,3.9978456,1312.3,1312.1,2.48757758]
[1673254141701,3.4258456,1312.2,1312.1,0.02075839]
[1673254149396,3.42434225,1312.2,1312.1,0.02075839]
[1673254149882,3.42434225,1312.2,1312.1,0.01821486]
[1673254163651,12.59143321,1312.3,1312.1,0.01821486]
[1673254163885,15.25768147,1312.3,1312.1,0.01821486]
[1673254164088,3.42584253,1312.2,1312.1,0.01821486]
[1673254164321,3.42576824,1312.2,1312.1,0.01821486]
[1673254172944,3.42576824,1312.2,1312.1,0.01458626]
[1673254176009,3.42576824,1312.2,1312.1,7.63595626]
[1673254176315,3.42576824,1312.2,1312.1,0.01458626]
[1673254180151,14.68568147,1312.3,1312.1,0.01458626]
[1673254180360,3.42921945,1312.2,1312.1,0.01458626]
[1673254180780,0.9508611,1312.2,1312.1,0.01458626]
[1673254184902,4.94439431,1312.2,1312.1,0.01458626]
[1673254196413,5.51649431,1312.2,1312.1,0.01142854]
[1673254201593,8.01303265,1312.2,1312.1,0.01142854]
[1673254204650,7.44093265,1312.2,1312.1,0.01142854]
[1673254208013,22.68249265,1312.2,1312.1,0.01142854]
[1673254208229,34.07016919,1312.2,1312.1,0.01142854]
[1673254208699,38.06886387,1312.2,1312.1,0.01142854]
[1673254209223,30.44808387,1312.2,1312.1,0.01142854]
[1673254209727,16.81487412,1312.2,1312.1,0.01142854]
[1673254212455,9.19409412,1312.2,1312.1,0.01142854]
[1673254213278,7.46109412,1312.2,1312.1,0.01142854]
[1673254214052,15.08187412,1312.2,1312.1,0.01142854]
[1673254215393,32.59765315,1312.2,1312.1,0.01142854]
[1673254215592,42.68509785,1312.2,1312.0,0.0409135]
[1673254215914,16.42136969,1312.1,1312.0,0.0409135]
[1673254216266,18.89471014,1312.1,1312.0,0.0409135]
[1673254216622,19.65824848,1312.1,1312.0,0.0409135]
[1673254218347,27.27961848,1312.1,1312.0,0.0409135]
[1673254219173,19.65824848,1312.1,1312.0,0.0409135]
[1673254220478,12.03687848,1312.1,1312.0,0.0409135]
[1673254221734,11.46477848,1312.1,1312.0,0.0409135]
[1673254223954,8.97024014,1312.1,1312.0,0.0409135]
[1673254224161,3.42655319,1312.1,1312.0,0.0409135]
[1673254224336,3.42655319,1312.1,1312.0,15.2848135]
[1673254229294,3.42655319,1312.1,1312.0,7.6628635]
[1673254230769,3.42276386,1312.1,1312.0,22.9067635]
[1673254231474,3.42276386,1312.1,1312.0,15.2848135]
[1673254231903,3.42276386,1312.1,1312.0,15.52735795]
[1673254232887,3.42276386,1312.1,1312.0,0.28345795]
[1673254235398,4.31702633,1312.1,1312.0,0.28345795]
[1673254235613,0.89426247,1312.1,1312.0,0.28345795]
[1673254235925,0.89426247,1312.1,1312.0,0.0409135]
[1673254236451,12.51253216,1312.1,1312.0,0.0409135]
[1673254238403,8.51563247,1312.1,1312.0,0.0409135]
[1673254239365,12.51253216,1312.1,1312.0,0.0409135]
[1673254241451,4.89116216,1312.1,1312.0,0.0409135]
[1673254242752,0.89426247,1312.1,1312.0,0.0409135]
[1673254242938,4.89116216,1312.1,1312.0,0.0409135]
[1673254244195,27.75527216,1312.1,1312.0,0.0409135]
[1673254244406,22.6454405,1312.1,1312.0,0.0409135]
[1673254244959,20.0240705,1312.1,1312.0,0.0409135]
[1673254245492,25.8974405,1312.1,1312.0,0.0409135]
[1673254245803,33.5188105,1312.1,1312.0,0.0409135]
[1673254248505,29.52191081,1312.1,1312.0,0.0409135]
[1673254248927,33.52229383,1312.1,1312.0,0.0409135]
[1673254251132,25.90092383,1312.1,1312.0,0.0409135]
[1673254251782,18.27955383,1312.1,1312.0,0.0409135]
[1673254252225,18.27955383,1312.1,1312.0,0.03780785]
[1673254252616,18.23894243,1312.1,1312.0,0.03780785]
[1673254257345,13.23894243,1312.1,1312.0,0.03780785]
[1673254258324,18.23894243,1312.1,1312.0,0.03780785]
[1673254258650,10.61757243,1312.1,1312.0,0.03780785]
[1673254261690,5.85365107,1312.1,1312.0,0.03780785]
[1673254262743,0.85365107,1312.1,1312.0,0.03780785]
[1673254263125,4.85403409,1312.1,1312.0,0.03780785]
[1673254263760,0.85365107,1312.1,1312.0,0.03780785]
[1673254264185,4.85403409,1312.1,1312.0,0.03780785]
[1673254265212,3.4279961,1312.1,1312.0,0.03780785]
[1673254265470,4.00038302,1312.2,1312.0,0.03780785]
[1673254265887,11.62120302,1312.2,1312.0,0.03780785]
[1673254267263,3.42834722,1312.1,1312.0,0.03780785]
[1673254267439,4.00038302,1312.1,1312.0,0.03780785]
[1673254267974,11.62120302,1312.2,1312.0,0.03780785]
[1673254268191,16.97733192,1312.2,1312.0,0.03780785]
[1673254270065,3.42871099,1312.1,1312.0,0.03780785]
[1673254272920,16.97733192,1312.2,1312.0,0.03780785]
[1673254273126,3.42960893,1312.1,1312.0,0.03780785]
[1673254273366,16.97733192,1312.2,1312.0,0.03780785]
[1673254273582,3.42960703,1312.1,1312.0,0.03780785]
[1673254273771,16.97733192,1312.2,1312.0,0.03780785]
[1673254274252,25.36169026,1312.2,1312.0,0.03780785]
[1673254275380,25.36169026,1312.2,1312.0,0.0339162]
[1673254277977,10.12005026,1312.2,1312.0,0.0339162]
[1673254278191,3.42997878,1312.1,1312.0,0.0339162]
[1673254280172,3.42986418,1312.1,1312.0,0.0339162]
[1673254280431,12.38475136,1312.2,1312.0,0.0339162]
[1673254280649,3.42981663,1312.1,1312.0,0.0339162]
[1673254281473,17.74089626,1312.2,1312.0,0.0339162]
[1673254281697,3.42975009,1312.1,1312.0,0.0339162]
[1673254281884,3.42973494,1312.1,1312.0,0.0339162]
[1673254282224,3.42975936,1312.1,1312.0,0.0339162]
[1673254282424,17.74089626,1312.2,1312.0,0.0339162]
[1673254283119,3.42969956,1312.1,1312.0,0.0339162]
[1673254283870,17.74089626,1312.2,1312.0,0.0339162]
[1673254284308,3.42969923,1312.1,1312.0,0.0339162]
[1673254293058,10.12006626,1312.2,1312.0,0.0339162]
[1673254296317,6.00038302,1312.1,1312.0,0.0339162]
[1673254296547,4.00038302,1312.1,1312.0,0.0339162]
[1673254297052,4.00038302,1312.1,1312.0,0.03134672]
[1673254297423,21.01722065,1312.1,1312.0,0.03134672]
[1673254298082,28.63859065,1312.1,1312.0,0.03134672]
[1673254298479,21.01722065,1312.1,1312.0,0.03134672]
[1673254299950,13.39585065,1312.1,1312.0,0.03134672]
[1673254307254,5.77448065,1312.1,1312.0,0.03134672]
[1673254318402,5.77448065,1312.1,1312.0,0.02758286]
[1673254328642,1.77409763,1312.1,1312.0,0.02758286]
[1673254330056,5.20621508,1312.1,1312.0,0.02758286]
[1673254330473,1.77409763,1312.1,1312.0,0.02758286]
[1673254331020,5.20621092,1312.1,1312.0,0.02758286]
[1673254333505,5.20578412,1312.1,1312.0,0.02758286]
[1673254338648,5.20578412,1312.1,1312.0,0.0245197]
[1673254339640,5.77448065,1312.1,1312.0,0.0245197]
[1673254340659,1.77409763,1312.1,1312.0,0.0245197]
[1673254340854,5.20551961,1312.1,1312.0,0.0245197]
[1673254341416,1.77409763,1312.1,1312.0,0.0245197]
[1673254342270,5.77448065,1312.1,1312.0,0.0245197]
[1673254342646,4.00038302,1312.1,1312.0,0.0245197]
[1673254344634,16.97731792,1312.2,1312.0,0.0245197]
[1673254344850,4.00038302,1312.1,1312.0,0.0245197]
[1673254345634,16.97731792,1312.2,1312.0,0.0245197]
[1673254346849,9.35652792,1312.2,1312.0,0.0245197]
[1673254347300,4.00038302,1312.1,1312.0,0.0245197]
[1673254348816,9.35652792,1312.2,1312.0,0.0245197]
[1673254348998,3.43160416,1312.1,1312.0,0.0245197]
[1673254349385,9.35652792,1312.2,1312.0,0.0245197]
[1673254349735,3.43158421,1312.1,1312.0,0.0245197]
[1673254363048,9.35652792,1312.2,1312.0,0.0245197]
[1673254363258,9.35652792,1312.2,1312.0,0.0213581]
[1673254364828,3.43183434,1312.1,1312.0,15.2652481]
[1673254365680,5.14657823,1312.1,1312.0,36.38769607]
[1673254366093,5.14657823,1312.1,1312.0,36.61769607]
[1673254366312,2.28734437,1312.1,1312.0,42.35469607]
[1673254366531,2.28734437,1312.1,1312.0,48.17614254]
[1673254366771,2.28734437,1312.1,1312.0,47.17614254]